bitfinex/quotes_BTCUSD_20250215
["timestamp","ask_amount","ask_price","bid_price","bid_amount"]
[1739636988000,0.00022366,97590.0,97589.0,0.30727798]
[1739636992375,0.00022366,97590.0,97589.0,0.29937281]
[1739636997120,0.00022366,97590.0,97589.0,0.29169087]
[1739637000047,0.00022366,97590.0,97589.0,0.29936737]
[1739637001182,0.00022366,97590.0,97589.0,0.17386372]
[1739637001841,0.00022366,97590.0,97589.0,0.19686372]
[1739637003953,0.07932366,97590.0,97589.0,0.02015872]
[1739637004155,0.08760676,97590.0,97589.0,0.02015872]
[1739637004471,0.08760676,97590.0,97589.0,0.19686372]
[1739637008470,0.00022366,97590.0,97589.0,0.19686372]
[1739637009419,0.00850676,97590.0,97589.0,0.19686372]
[1739637009946,0.00022366,97590.0,97589.0,0.19686372]
[1739637010419,0.00850676,97590.0,97589.0,0.19686372]
[1739637011051,0.08760676,97590.0,97589.0,0.04315872]
[1739637011853,0.08760676,97590.0,97589.0,0.03548222]
[1739637012843,0.08760676,97590.0,97589.0,0.18918722]
[1739637015307,0.08760676,97590.0,97589.0,0.03548222]
[1739637016907,0.28671076,97590.0,97589.0,0.03548222]
[1739637017218,0.28671076,97590.0,97589.0,0.03048222]
[1739637017434,0.38921441,97590.0,97589.0,0.00748222]
[1739637017574,0.38921441,97590.0,97589.0,0.00348222]
[1739637017787,0.38921441,97590.0,97589.0,0.00048222]
[1739637017986,0.38921441,97590.0,97589.0,0.00748222]
[1739637018187,0.38921441,97590.0,97589.0,0.00948222]
[1739637018650,0.38921441,97590.0,97589.0,0.00748222]
[1739637019312,0.38921441,97590.0,97589.0,0.00048222]
[1739637026062,0.71081441,97590.0,97589.0,0.00048222]
[1739637043442,0.71281441,97590.0,97589.0,0.00048222]
[1739637044188,0.71381441,97590.0,97589.0,0.00048222]
[1739637050625,0.74573762,97590.0,97589.0,0.00048222]
[1739637055619,0.89573762,97590.0,97589.0,0.00048222]
[1739637058274,0.85033762,97590.0,97589.0,0.00048222]
[1739637058715,0.54663362,97590.0,97589.0,0.00048222]
[1739637058907,0.46753362,97590.0,97589.0,0.00048222]
[1739637059114,0.62123762,97590.0,97589.0,0.00048222]
[1739637059346,0.51873397,97590.0,97589.0,0.00048222]
[1739637061381,0.62123762,97590.0,97589.0,0.00048222]
[1739637061586,0.70383762,97590.0,97589.0,0.00048222]
[1739637069067,0.90013762,97590.0,97589.0,0.00048222]
[1739637069900,0.89813762,97590.0,97589.0,0.00048222]
[1739637070121,0.89713762,97590.0,97589.0,0.00048222]
[1739637070340,0.89813762,97590.0,97589.0,0.00048222]
[1739637071370,0.90213762,97590.0,97589.0,0.00048222]
[1739637072205,1.00464127,97590.0,97589.0,0.00048222]
[1739637072377,0.91213762,97590.0,97589.0,0.00048222]
[1739637072995,0.90713762,97590.0,97589.0,0.00048222]
[1739637073557,0.91213762,97590.0,97589.0,0.00148222]
[1739637074333,0.91913762,97590.0,97589.0,0.00248222]
[1739637074531,0.91413762,97590.0,97589.0,0.00148222]
[1739637074752,0.90713762,97590.0,97589.0,0.00048222]
[1739637074955,0.92113762,97590.0,97589.0,0.00248222]
[1739637077276,0.2435321,97561.0,97560.0,0.0009865]
[1739637077485,0.66763575,97561.0,97560.0,0.00103027]
[1739637077690,0.69948867,97561.0,97560.0,4.377e-05]
[1739637078500,0.66763575,97561.0,97560.0,4.377e-05]
[1739637079142,0.67463575,97561.0,97560.0,0.00104377]
[1739637079357,0.68063575,97561.0,97560.0,0.00204377]
[1739637080869,0.7014608,97561.0,97560.0,0.00204377]
[1739637081451,0.7014608,97561.0,97560.0,0.00215027]
[1739637082683,0.8514608,97561.0,97560.0,0.00215027]
[1739637086248,0.74913575,97561.0,97560.0,0.00215027]
[1739637087041,0.74913575,97561.0,97560.0,0.02515027]
[1739637088030,0.42753575,97561.0,97560.0,0.02515027]
[1739637089958,0.42053575,97561.0,97560.0,0.02415027]
[1739637090360,0.42153575,97561.0,97560.0,0.02415027]
[1739637090561,0.41553575,97561.0,97560.0,0.02315027]
[1739637090769,0.41453575,97561.0,97560.0,0.02315027]
[1739637090977,0.41453575,97561.0,97560.0,0.00015027]
[1739637091184,0.49393575,97561.0,97560.0,0.00015027]
[1739637091600,0.81553575,97561.0,97560.0,0.00015027]
[1739637091953,0.9180394,97561.0,97560.0,0.00015027]
[1739637092158,0.81553575,97561.0,97560.0,0.00015027]
[1739637094078,0.74013575,97561.0,97560.0,0.00015027]
[1739637094289,0.74213575,97561.0,97560.0,0.00015027]
[1739637094496,0.74013575,97561.0,97560.0,0.00015027]
[1739637094725,0.73613575,97561.0,97560.0,0.00015027]
[1739637094926,0.74113575,97561.0,97560.0,0.00015027]
[1739637095723,0.73913575,97561.0,97560.0,0.00015027]
[1739637095931,0.74113575,97561.0,97560.0,0.00015027]
[1739637096135,0.73813575,97561.0,97560.0,0.00015027]
[1739637096475,0.74113575,97561.0,97560.0,0.00015027]
[1739637097047,0.73813575,97561.0,97560.0,0.00015027]
[1739637097257,0.73613575,97561.0,97560.0,0.00015027]
[1739637097823,0.73713575,97561.0,97560.0,0.00015027]
[1739637100949,0.73613575,97561.0,97560.0,0.00015027]
[1739637101154,0.73813575,97561.0,97560.0,0.00015027]
[1739637101769,0.73713575,97561.0,97560.0,0.00015027]
[1739637102008,0.73613575,97561.0,97560.0,0.00015027]
[1739637102426,0.73713575,97561.0,97560.0,0.00015027]
[1739637105195,0.73613575,97561.0,97560.0,0.00015027]
[1739637105417,0.73713575,97561.0,97560.0,0.00015027]
[1739637106411,0.73813575,97561.0,97560.0,0.00015027]
[1739637107737,0.73713575,97561.0,97560.0,0.00015027]
[1739637108319,0.73613575,97561.0,97560.0,0.00015027]
[1739637110537,0.73713575,97561.0,97560.0,0.00015027]
[1739637129217,0.86683575,97561.0,97560.0,0.00015027]
[1739637129388,0.89876925,97561.0,97560.0,0.00015027]
[1739637133198,0.89976925,97561.0,97560.0,0.00015027]
[1739637134125,0.89876925,97561.0,97560.0,0.00015027]
[1739637134752,0.89976925,97561.0,97560.0,0.00015027]
[1739637135608,0.85046925,97561.0,97560.0,0.00015027]
[1739637149141,0.89886925,97561.0,97560.0,0.00015027]
[1739637150179,0.89786925,97561.0,97560.0,0.00015027]
[1739637150659,0.89886925,97561.0,97560.0,0.00015027]
[1739637151075,0.89686925,97561.0,97560.0,0.00015027]
[1739637151286,0.90386925,97561.0,97560.0,0.00015027]
[1739637151490,0.90286925,97561.0,97560.0,0.00015027]
[1739637152399,0.90786925,97561.0,97560.0,0.00015027]
[1739637168863,0.90786925,97561.0,97551.0,0.0002]
[1739637168864,0.3951471,97552.0,97551.0,0.0002]
[1739637169072,0.52958425,97552.0,97551.0,0.0002]
[1739637170879,0.53658425,97552.0,97551.0,0.0002]
[1739637171694,0.54258425,97552.0,97551.0,0.0002]
[1739637173314,0.63446498,97552.0,97551.0,0.0002]
[1739637173521,0.65471149,97552.0,97551.0,0.0002]
[1739637174705,0.97631149,97552.0,97551.0,0.0002]
[1739637175302,0.89321149,97552.0,97551.0,0.0002]
[1739637175968,0.86468188,97552.0,97551.0,0.0002]
[1739637176177,0.74086765,97552.0,97551.0,0.0002]
[1739637176769,0.74915075,97552.0,97551.0,0.0003065]
[1739637177519,0.74086765,97552.0,97551.0,0.0003065]
[1739637177880,0.74915075,97552.0,97551.0,0.0003065]
[1739637178956,0.78107287,97552.0,97551.0,0.0003065]
[1739637180066,0.74915075,97552.0,97551.0,0.0003065]
[1739637180214,0.78107941,97552.0,97551.0,0.0003065]
[1739637181678,0.77279631,97552.0,97551.0,0.0003065]
[1739637182991,0.74086765,97552.0,97551.0,0.0003065]
[1739637184384,0.44538675,97552.0,97551.0,0.0003065]
[1739637185045,0.59915075,97552.0,97551.0,0.0003065]
[1739637185241,0.3346,97552.0,97551.0,0.0233065]
[1739637185557,0.3298831,97552.0,97551.0,0.0003065]
[1739637185966,0.3318831,97552.0,97551.0,0.0003065]
[1739637186118,0.3256,97552.0,97551.0,0.0003065]
[1739637186474,0.3318831,97552.0,97551.0,0.0003065]
[1739637186686,0.1640471,97552.0,97551.0,0.0003065]
[1739637186888,0.1650471,97552.0,97551.0,0.0003065]
[1739637187335,0.26555075,97552.0,97551.0,0.0003065]
[1739637187540,0.26755075,97552.0,97551.0,0.0003065]
[1739637188077,0.26655075,97552.0,97551.0,0.0003065]
[1739637188315,0.26755075,97552.0,97551.0,0.0003065]
[1739637188938,0.26655075,97552.0,97551.0,0.0003065]
[1739637189139,0.26755075,97552.0,97551.0,6.5e-06]
[1739637189761,0.26655075,97552.0,97551.0,6.5e-06]
[1739637189962,0.26755075,97552.0,97551.0,6.5e-06]
[1739637190420,0.11378675,97552.0,97551.0,6.5e-06]
[1739637190652,0.0112831,97552.0,97551.0,6.5e-06]
[1739637190887,0.0092831,97552.0,97551.0,6.5e-06]
[1739637191060,0.0112831,97552.0,97551.0,6.5e-06]
[1739637191264,0.0102831,97552.0,97551.0,6.5e-06]
[1739637191470,0.0112831,97552.0,97551.0,6.5e-06]
[1739637192070,0.01156451,97552.0,97551.0,6.5e-06]
[1739637192264,0.01256451,97552.0,97551.0,6.5e-06]
[1739637192510,0.11506816,97552.0,97551.0,6.5e-06]
[1739637193094,0.26506816,97552.0,97551.0,6.5e-06]
[1739637193307,0.29570711,97552.0,97551.0,6.5e-06]
[1739637195358,0.30574711,97552.0,97551.0,6.5e-06]
[1739637198548,0.62734711,97552.0,97551.0,6.5e-06]
[1739637198984,0.8013693,97552.0,97551.0,6.5e-06]
[1739637200289,0.80159296,97552.0,97551.0,6.5e-06]
[1739637201213,0.97299267,97552.0,97551.0,6.5e-06]
[1739637201412,0.97099267,97552.0,97551.0,6.5e-06]
[1739637201620,0.97399267,97552.0,97551.0,6.5e-06]
[1739637202034,0.97299267,97552.0,97551.0,6.5e-06]
[1739637202441,0.97799267,97552.0,97551.0,6.5e-06]
[1739637203051,0.97599267,97552.0,97551.0,6.5e-06]
[1739637203255,0.98099267,97552.0,97551.0,6.5e-06]
[1739637203438,0.97599267,97552.0,97551.0,6.5e-06]
[1739637203873,0.97499267,97552.0,97551.0,6.5e-06]
[1739637204073,0.87909296,97552.0,97551.0,6.5e-06]
[1739637204286,0.88409296,97552.0,97551.0,6.5e-06]
[1739637204498,0.88809296,97552.0,97551.0,6.5e-06]
[1739637204709,0.88309296,97552.0,97551.0,6.5e-06]
[1739637204892,0.88809296,97552.0,97551.0,6.5e-06]
[1739637205451,0.88309296,97552.0,97551.0,6.5e-06]
[1739637205666,0.88809296,97552.0,97551.0,6.5e-06]
[1739637205888,0.88409296,97552.0,97551.0,6.5e-06]
[1739637206289,0.88909296,97552.0,97551.0,6.5e-06]
[1739637206935,0.88409296,97552.0,97551.0,6.5e-06]
[1739637207145,0.87909296,97552.0,97551.0,6.5e-06]
[1739637207360,0.89309296,97552.0,97551.0,6.5e-06]
[1739637207578,0.88609296,97552.0,97551.0,6.5e-06]
[1739637207833,0.87909296,97552.0,97551.0,6.5e-06]
[1739637208059,0.88609296,97552.0,97551.0,6.5e-06]
[1739637208184,0.89309296,97552.0,97551.0,6.5e-06]
[1739637208649,0.88609296,97552.0,97551.0,6.5e-06]
[1739637208864,0.89309296,97552.0,97551.0,6.5e-06]
[1739637209345,0.88609296,97552.0,97551.0,6.5e-06]
[1739637209552,0.89309296,97552.0,97551.0,6.5e-06]
[1739637210811,0.88609296,97552.0,97551.0,6.5e-06]
[1739637211025,0.87909296,97552.0,97551.0,6.5e-06]
[1739637211230,0.89309296,97552.0,97551.0,6.5e-06]
[1739637214617,0.87909296,97552.0,97551.0,6.5e-06]
[1739637214840,0.89309296,97552.0,97551.0,6.5e-06]
[1739637215568,0.88609296,97552.0,97551.0,6.5e-06]
[1739637216345,0.87909296,97552.0,97551.0,6.5e-06]
[1739637216545,0.88609296,97552.0,97551.0,6.5e-06]
[1739637216953,0.89309296,97552.0,97551.0,6.5e-06]
[1739637217158,0.88609296,97552.0,97551.0,6.5e-06]
[1739637218011,0.89309296,97552.0,97551.0,6.5e-06]
[1739637218216,0.88609296,97552.0,97551.0,6.5e-06]
[1739637218375,0.87909296,97552.0,97551.0,6.5e-06]
[1739637218583,0.88609296,97552.0,97551.0,6.5e-06]
[1739637219577,0.97800967,97552.0,97551.0,6.5e-06]
[1739637219777,0.98500967,97552.0,97551.0,6.5e-06]
[1739637219982,0.97100967,97552.0,97551.0,6.5e-06]
[1739637220510,0.97800967,97552.0,97551.0,6.5e-06]
[1739637221417,0.98500967,97552.0,97551.0,6.5e-06]
[1739637222224,0.89309296,97552.0,97551.0,6.5e-06]
[1739637222658,0.80559296,97552.0,97551.0,6.5e-06]
[1739637223279,0.79859296,97552.0,97551.0,6.5e-06]
[1739637223483,0.78533477,97552.0,97551.0,6.5e-06]
[1739637223707,0.48757077,97552.0,97551.0,6.5e-06]
[1739637224003,0.60241441,97552.0,97551.0,6.5e-06]
[1739637224205,0.60941441,97552.0,97551.0,6.5e-06]
[1739637224362,0.60341441,97552.0,97551.0,6.5e-06]
[1739637224563,0.59641441,97552.0,97551.0,6.5e-06]
[1739637224867,0.60441441,97552.0,97551.0,6.5e-06]
[1739637226118,0.60241441,97552.0,97551.0,6.5e-06]
[1739637226614,0.59741441,97552.0,97551.0,6.5e-06]
[1739637226816,0.59941441,97552.0,97551.0,6.5e-06]
[1739637227063,0.59741441,97552.0,97551.0,6.5e-06]
[1739637227384,0.6313625,97552.0,97551.0,6.5e-06]
[1739637228040,0.59941441,97552.0,97551.0,6.5e-06]
[1739637229972,0.63135929,97552.0,97551.0,6.5e-06]
[1739637230518,0.59941441,97552.0,97551.0,6.5e-06]
[1739637230721,0.63135662,97552.0,97551.0,6.5e-06]
[1739637231506,0.59941441,97552.0,97551.0,6.5e-06]
[1739637238772,0.44565041,97552.0,97551.0,6.5e-06]
[1739637238973,0.34314676,97552.0,97551.0,6.5e-06]
[1739637240153,0.02154676,97552.0,97551.0,6.5e-06]
[1739637245705,0.17531076,97552.0,97551.0,6.5e-06]
[1739637246339,0.02154676,97552.0,97551.0,6.5e-06]
[1739637247360,0.17531076,97552.0,97551.0,6.5e-06]
[1739637247576,0.02154676,97552.0,97551.0,6.5e-06]
[1739637248203,0.10384676,97552.0,97551.0,6.5e-06]
[1739637248420,0.36139579,97552.0,97551.0,6.5e-06]
[1739637248625,0.36011441,97552.0,97551.0,6.5e-06]
[1739637249103,0.27781441,97552.0,97551.0,6.5e-06]
[1739637251950,0.59941441,97552.0,97551.0,6.5e-06]
[1739637252360,0.74941441,97552.0,97551.0,6.5e-06]
[1739637253230,0.8636466,97552.0,97551.0,6.5e-06]
[1739637254757,0.8616466,97552.0,97551.0,6.5e-06]
[1739637254968,0.8606466,97552.0,97551.0,6.5e-06]
[1739637255220,0.8736466,97552.0,97551.0,6.5e-06]
[1739637255427,0.8676466,97552.0,97551.0,6.5e-06]
[1739637255639,0.8606466,97552.0,97551.0,6.5e-06]
[1739637256045,0.8746466,97552.0,97551.0,6.5e-06]
[1739637259638,0.96656552,97552.0,97551.0,6.5e-06]
[1739637262736,0.8746466,97552.0,97551.0,6.5e-06]
[1739637271818,0.84271441,97552.0,97551.0,6.5e-06]
[1739637272050,0.76041441,97552.0,97551.0,6.5e-06]
[1739637272480,0.61041441,97552.0,97551.0,6.5e-06]
[1739637272685,0.76041441,97552.0,97551.0,6.5e-06]
[1739637273425,0.75341441,97552.0,97551.0,6.5e-06]
[1739637273809,0.75041441,97552.0,97551.0,6.5e-06]
[1739637274218,0.75441441,97552.0,97551.0,6.5e-06]
[1739637281425,0.83611441,97552.0,97551.0,6.5e-06]
[1739637282281,0.86803397,97552.0,97551.0,6.5e-06]
[1739637297826,0.78633397,97552.0,97551.0,6.5e-06]
[1739637298680,0.48256997,97552.0,97551.0,0.1537715]
[1739637298895,0.33986366,97552.0,97551.0,0.1537715]
[1739637299112,0.34814676,97552.0,97551.0,6.5e-06]
[1739637299328,0.02654676,97552.0,97551.0,0.1767715]
[1739637299539,0.02654676,97552.0,97551.0,0.0230065]
[1739637299723,0.02254676,97552.0,97551.0,0.0230065]
[1739637299892,0.01854676,97552.0,97551.0,0.0230065]
[1739637300103,0.01954676,97552.0,97551.0,0.0230065]
[1739637300711,0.17331076,97552.0,97551.0,6.5e-06]
[1739637301326,0.17531076,97552.0,97551.0,6.5e-06]
[1739637301914,0.27909579,97552.0,97551.0,6.5e-06]
[1739637302120,0.27781441,97552.0,97551.0,6.5e-06]
[1739637303294,0.01326366,97552.0,97551.0,6.5e-06]
[1739637303496,0.01326366,97552.0,97551.0,0.1767715]
[1739637304263,0.01326366,97552.0,97551.0,0.0230065]
[1739637305075,0.01326366,97552.0,97551.0,0.1767715]
[1739637305276,0.01326366,97552.0,97551.0,0.2239715]
[1739637306269,0.01226366,97552.0,97551.0,0.2239715]
[1739637306504,0.01026366,97552.0,97551.0,0.2239715]
[1739637306717,0.01026366,97552.0,97551.0,0.2249715]
[1739637312705,0.01026366,97552.0,97551.0,0.3036715]
[1739637314349,0.01026366,97552.0,97551.0,0.3026715]
[1739637314700,0.01126366,97552.0,97551.0,0.3056715]
[1739637324139,0.01126366,97552.0,97551.0,0.2269715]
[1739637332118,0.00122366,97552.0,97551.0,0.2269715]
[1739637333386,0.00122366,97552.0,97551.0,0.1797715]
[1739637348144,0.00122366,97552.0,97551.0,0.0260065]
[1739637348683,0.15498766,97552.0,97551.0,0.0030065]
[1739637349087,0.08162366,97552.0,97551.0,0.0260065]
[1739637349504,0.08062366,97552.0,97551.0,0.0230065]
[1739637349790,0.08062366,97552.0,97551.0,0.0260065]
[1739637350428,0.08062366,97552.0,97551.0,0.0240065]
[1739637350627,0.08062366,97552.0,97551.0,0.0230065]
[1739637350845,0.08062366,97552.0,97551.0,0.0240065]
[1739637351647,0.08062366,97552.0,97551.0,0.0260065]
[1739637352056,0.08062366,97552.0,97551.0,0.0270065]
[1739637352312,0.08062366,97552.0,97551.0,0.0240065]
[1739637352535,0.08062366,97552.0,97551.0,0.0270065]
[1739637357404,0.08062366,97552.0,97551.0,0.0270065]
[1739637361783,0.28128766,97552.0,97551.0,0.0270065]
[1739637362138,0.38379131,97552.0,97551.0,0.0270065]
[1739637362556,0.38379131,97552.0,97551.0,0.0230065]
[1739637362759,0.38379131,97552.0,97551.0,0.0240065]
[1739637362993,0.38379131,97552.0,97551.0,0.0250065]
[1739637363199,0.38379131,97552.0,97551.0,0.0240065]
[1739637363825,0.12752366,97552.0,97551.0,0.1777715]
[1739637364021,0.12752366,97552.0,97551.0,0.0240065]
[1739637364233,0.12752366,97552.0,97551.0,0.0230065]
[1739637364433,0.08062366,97552.0,97551.0,0.0240065]
[1739637364628,0.08062366,97552.0,97551.0,0.1777715]
[1739637365532,0.08062366,97552.0,97551.0,0.1767715]
[1739637365940,0.08062366,97552.0,97551.0,0.1777715]
[1739637366364,0.00022366,97552.0,97551.0,0.1777715]
[1739637369048,0.00022366,97552.0,97551.0,0.0240065]
[1739637369609,0.00022366,97552.0,97551.0,0.1777715]
[1739637370298,0.00022366,97552.0,97551.0,0.0240065]
[1739637371366,0.00022366,97552.0,97551.0,0.0230065]
[1739637371540,0.00022366,97552.0,97551.0,0.0240065]
[1739637371923,0.00022366,97552.0,97551.0,0.0230065]
[1739637373651,0.00022366,97552.0,97551.0,0.1767715]
[1739637374060,0.00022366,97552.0,97551.0,0.1777715]
[1739637374464,0.00022366,97552.0,97551.0,0.1767715]
[1739637374879,0.00022366,97552.0,97551.0,0.1797715]
[1739637375250,0.00022366,97552.0,97551.0,0.1807715]
[1739637376225,0.00022366,97552.0,97551.0,0.1797715]
[1739637376434,0.00022366,97552.0,97551.0,0.1777715]
[1739637376642,0.00122366,97552.0,97551.0,0.1807715]
[1739637376872,0.00122366,97552.0,97551.0,0.1797715]
[1739637377081,0.00022366,97552.0,97551.0,0.1777715]
[1739637377508,0.00022366,97552.0,97551.0,0.1807715]
[1739637382046,0.07772366,97552.0,97551.0,0.0270065]
[1739637383632,0.23148766,97552.0,97551.0,0.0270065]
[1739637383982,0.07772366,97552.0,97551.0,0.0270065]
[1739637384183,0.07772366,97552.0,97551.0,0.0240065]
[1739637384533,0.07772366,97552.0,97551.0,0.0260065]
[1739637384735,0.07772366,97552.0,97551.0,0.0270065]
[1739637384909,0.07772366,97552.0,97551.0,0.0240065]
[1739637385280,0.07772366,97552.0,97551.0,0.0230065]
[1739637385885,0.07772366,97552.0,97551.0,0.0240065]
[1739637386038,0.23148766,97552.0,97551.0,0.0240065]
[1739637386242,0.23148766,97552.0,97551.0,0.003]
[1739637386547,0.07772366,97552.0,97551.0,0.003]
[1739637388300,0.07772366,97552.0,97551.0,0.0031065]
[1739637389018,0.23148766,97552.0,97551.0,0.0031065]
[1739637389658,0.23148766,97552.0,97551.0,0.0001065]
[1739637390101,0.33399131,97552.0,97551.0,0.0031065]
[1739637390349,0.38797441,97552.0,97551.0,0.0031065]
[1739637391303,0.38797441,97552.0,97551.0,0.0001065]
[1739637391540,0.38997441,97552.0,97551.0,0.0011065]
[1739637392896,0.38997441,97552.0,97551.0,0.0001065]
[1739637393130,0.39197441,97552.0,97551.0,0.0001065]
[1739637394403,0.71357441,97552.0,97551.0,0.0001065]
[1739637400311,0.71157441,97552.0,97551.0,0.0001065]
[1739637400520,0.70957441,97552.0,97551.0,0.0001065]
[1739637400725,0.71057441,97552.0,97551.0,0.0001065]
[1739637401074,0.70957441,97552.0,97551.0,0.0001065]
[1739637401276,0.71057441,97552.0,97551.0,0.0001065]
[1739637404654,0.70957441,97552.0,97551.0,0.0001065]
[1739637405422,0.51011041,97552.0,97551.0,0.0011065]
[1739637405873,0.66387441,97552.0,97551.0,0.0011065]
[1739637406075,0.51011041,97552.0,97551.0,0.0001065]
[1739637406708,0.32182366,97552.0,97551.0,0.1538715]
[1739637407042,0.32182366,97552.0,97551.0,0.0011065]
[1739637407193,0.33010676,97552.0,97551.0,0.1548715]
[1739637407415,0.33010676,97552.0,97551.0,0.0011065]
[1739637407822,0.32182366,97552.0,97551.0,0.0011065]
[1739637408027,0.33010676,97552.0,97551.0,0.0011065]
[1739637408234,0.33010676,97552.0,97551.0,0.1548715]
[1739637408407,0.33010676,97552.0,97551.0,0.0011065]
[1739637408957,0.34925647,97552.0,97551.0,0.0011065]
[1739637409945,0.34097337,97552.0,97551.0,0.1548715]
[1739637412352,0.01937337,97552.0,97551.0,0.0011065]
[1739637413634,0.01937337,97552.0,97551.0,0.1548715]
[1739637414360,0.01937337,97552.0,97551.0,0.0011065]
[1739637416315,0.01937337,97552.0,97551.0,0.1548715]
[1739637420249,0.31937337,97552.0,97551.0,0.1548715]
[1739637423587,0.32765647,97552.0,97551.0,0.1548715]
[1739637424872,0.31937337,97552.0,97551.0,0.1548715]
[1739637426668,0.31937337,97552.0,97551.0,0.1778715]
[1739637427624,0.31937337,97552.0,97551.0,0.1768715]
[1739637428071,0.31937337,97552.0,97551.0,0.1798715]
[1739637431080,0.30022366,97552.0,97551.0,0.1798715]
[1739637438579,0.31938499,97552.0,97551.0,0.1798715]
[1739637443727,0.31938499,97552.0,97551.0,0.1768715]
[1739637444138,0.30022366,97552.0,97551.0,0.1808715]
[1739637444738,0.30022366,97552.0,97551.0,0.1828715]
[1739637469087,0.37762366,97552.0,97551.0,0.1828715]
[1739637469885,0.37762366,97552.0,97551.0,0.0291065]
[1739637470092,0.42642366,97552.0,97551.0,0.0291065]
[1739637471090,0.42642366,97552.0,97551.0,0.0271065]
[1739637471290,0.42642366,97552.0,97551.0,0.0291065]
[1739637471496,0.42642366,97552.0,97551.0,0.0061065]
[1739637472164,0.42642366,97552.0,97551.0,0.0021065]
[1739637472575,0.42642366,97552.0,97551.0,0.0061065]
[1739637473169,0.42642366,97552.0,97551.0,0.0021065]
[1739637473375,0.42642366,97552.0,97551.0,0.0051065]
[1739637473733,0.44557944,97552.0,97551.0,0.0051065]
[1739637479259,0.42642366,97552.0,97551.0,0.0051065]
[1739637480473,0.42642366,97552.0,97551.0,0.1588715]
[1739637480757,0.37762366,97552.0,97551.0,0.1818715]
[1739637480985,0.30022366,97552.0,97551.0,0.1818715]
[1739637482229,0.30022366,97552.0,97551.0,0.1798715]
[1739637482544,0.30022366,97552.0,97551.0,0.1788715]
[1739637482839,0.30022366,97552.0,97551.0,0.1818715]
[1739637484690,0.37742366,97552.0,97551.0,0.0261065]
[1739637484933,0.37742366,97552.0,97551.0,0.0231065]
[1739637485186,0.37742366,97552.0,97551.0,0.0251065]
[1739637485459,0.37742366,97552.0,97551.0,0.0051065]
[1739637485966,0.37742366,97552.0,97551.0,0.0001065]
[1739637486236,0.39656817,97552.0,97551.0,0.0031065]
[1739637486711,0.39656817,97552.0,97551.0,0.0021065]
[1739637486959,0.39656817,97552.0,97551.0,0.0051065]
[1739637487377,0.40485127,97552.0,97551.0,0.0051065]
[1739637488439,0.40485127,97552.0,97551.0,0.0031065]
[1739637488859,0.40485127,97552.0,97551.0,0.0051065]
[1739637489315,0.41442129,97552.0,97551.0,0.0051065]
[1739637489943,0.41442129,97552.0,97551.0,0.0021065]
[1739637490351,0.41442129,97552.0,97551.0,0.0031065]
[1739637493254,0.44504498,97552.0,97551.0,0.0031065]
[1739637494432,0.44504498,97552.0,97551.0,0.0011065]
[1739637494811,0.44504498,97552.0,97551.0,0.0031065]
[1739637495212,0.44504498,97552.0,97551.0,0.0021065]
[1739637495533,0.44504498,97552.0,97551.0,0.0011065]
[1739637496163,0.59880898,97552.0,97551.0,0.0021065]
[1739637496461,0.70131263,97552.0,97551.0,0.0021065]
[1739637496857,0.70131263,97552.0,97551.0,0.0011065]
[1739637497043,0.74841263,97552.0,97551.0,0.0011065]
[1739637497569,0.74841263,97552.0,97551.0,0.0001065]
[1739637498635,0.75041263,97552.0,97551.0,0.0001065]
[1739637498848,0.75241263,97552.0,97551.0,0.0001065]
[1739637500086,0.72178894,97552.0,97551.0,0.0001065]
[1739637501313,0.87178894,97552.0,97551.0,0.0001065]
[1739637501517,1.19338894,97552.0,97551.0,0.0001065]
[1739637503909,1.22398288,97552.0,97551.0,0.0001065]
[1739637504828,1.22198288,97552.0,97551.0,0.0001065]
[1739637505127,1.22298288,97552.0,97551.0,0.0001065]
[1739637505307,1.21341286,97552.0,97551.0,0.0001065]
[1739637505483,1.24727872,97552.0,97551.0,0.0001065]
[1739637505690,1.25683684,97552.0,97551.0,0.0001065]
[1739637506153,1.2262429,97552.0,97551.0,0.0001065]
[1739637506486,1.19437704,97552.0,97551.0,0.0001065]
[1739637510022,1.19137704,97552.0,97551.0,0.0001065]
[1739637510353,1.19637704,97552.0,97551.0,0.0001065]
[1739637510775,1.19437704,97552.0,97551.0,0.0001065]
[1739637511189,1.19937704,97552.0,97551.0,0.0001065]
[1739637511608,1.19437704,97552.0,97551.0,0.0001065]
[1739637511909,1.19537704,97552.0,97551.0,0.0001065]
[1739637512349,1.20037704,97552.0,97551.0,0.0001065]
[1739637512982,1.19437704,97552.0,97551.0,0.0001065]
[1739637513427,1.20037704,97552.0,97551.0,0.0001065]
[1739637514212,1.19081892,97552.0,97551.0,0.0001065]
[1739637514846,1.18581892,97552.0,97551.0,0.0001065]
[1739637515053,1.19081892,97552.0,97551.0,0.0001065]
[1739637515581,1.18581892,97552.0,97551.0,0.0001065]
[1739637515759,1.19081892,97552.0,97551.0,0.0001065]
[1739637516640,1.14371892,97552.0,97551.0,0.0001065]
[1739637524628,1.153296,97552.0,97551.0,0.0001065]
[1739637524742,1.1851984,97552.0,97551.0,0.0001065]
[1739637530217,1.2325984,97552.0,97551.0,0.0001065]
[1739637530768,1.2325984,97552.0,97551.0,0.0001685]
[1739637531333,1.2265984,97552.0,97551.0,0.0001685]
[1739637531508,1.2285984,97552.0,97551.0,0.0001685]
[1739637531945,1.2355984,97552.0,97551.0,0.0001685]
[1739637534344,1.2285984,97552.0,97551.0,0.0001685]
[1739637535106,1.2275984,97552.0,97551.0,0.0001685]
[1739637535286,1.2215984,97552.0,97551.0,0.0001685]
[1739637535588,1.26625349,97552.0,97551.0,0.0001685]
[1739637535830,1.25925349,97552.0,97551.0,0.0001685]
[1739637535973,1.25825349,97552.0,97551.0,0.0001685]
[1739637536215,1.26525349,97552.0,97551.0,0.0001685]
[1739637536797,1.25925349,97552.0,97551.0,0.0001685]
[1739637537224,1.2285984,97552.0,97551.0,0.0001685]
[1739637537400,1.2215984,97552.0,97551.0,0.0001685]
[1739637537969,1.2285984,97552.0,97551.0,0.0001685]
[1739637538108,1.2355984,97552.0,97551.0,0.0001685]
[1739637538559,1.2285984,97552.0,97551.0,0.0001685]
[1739637538845,1.2415984,97552.0,97551.0,0.0001685]
[1739637539098,1.2285984,97552.0,97551.0,0.0001685]
[1739637539681,1.26624543,97552.0,97551.0,0.0001685]
[1739637540058,1.25924543,97552.0,97551.0,0.0001685]
[1739637541209,1.25224543,97552.0,97551.0,0.0001685]
[1739637541410,1.25924543,97552.0,97551.0,0.0001685]
[1739637541588,1.26524543,97552.0,97551.0,0.0001685]
[1739637541769,1.25224543,97552.0,97551.0,0.0001685]
[1739637542176,1.26624543,97552.0,97551.0,0.0001685]
[1739637542611,1.26524543,97552.0,97551.0,0.0001685]
[1739637543279,1.2415984,97552.0,97551.0,0.0001685]
[1739637544525,1.2285984,97552.0,97551.0,0.0001685]
[1739637544674,1.2215984,97552.0,97551.0,0.0001685]
[1739637544880,1.2275984,97552.0,97551.0,0.0001685]
[1739637545085,1.2345984,97552.0,97551.0,0.0001685]
[1739637545677,1.2275984,97552.0,97551.0,0.0001685]
[1739637545946,1.2345984,97552.0,97551.0,0.0001685]
[1739637546175,1.2285984,97552.0,97551.0,0.0001685]
[1739637546756,1.2355984,97552.0,97551.0,0.0001685]
[1739637546971,1.26623582,97552.0,97551.0,0.0001685]
[1739637547169,1.26618693,97552.0,97551.0,0.0001685]
[1739637548072,1.25918693,97552.0,97551.0,0.0001685]
[1739637548279,1.26618693,97552.0,97551.0,0.0001685]
[1739637548493,1.23554951,97552.0,97551.0,0.0001685]
[1739637548702,1.22154951,97552.0,97551.0,0.0001685]